fUST/lending_fUST_20250529
["ID","MTS","AMOUNT","RATE_DAILY","PERIOD"]
[362870571,1748501448100,-430.0,0.00022191,2]
[362870573,1748501448111,-1750.94,0.00022191,2]
[362870575,1748501448120,-151.0,0.000222,7]
[362870577,1748501448129,-151.0,0.000222,7]
[362870579,1748501448139,-151.0,0.000222,7]
[362870581,1748501448149,-298.814753,0.000222,7]
[362870583,1748501448160,-298.814753,0.000222,7]
[362870585,1748501448170,-160.0,0.00022238,2]
[362870587,1748501448179,-151.0,0.00022239,7]
[362870589,1748501448188,-298.814753,0.00022239,7]
[362870591,1748501448198,-298.814753,0.00022239,7]
[362870593,1748501448207,-700.0,0.0002226,2]
[362870595,1748501448217,-1074.69,0.000223,2]
[362870597,1748501448226,-420.59571215,0.00022314,7]
[362870599,1748501448236,-485.48091986,0.00022365,2]
[362870601,1748501448245,-609.59,0.0002242,2]
[362870603,1748501448253,-590.29,0.0002242,2]
[362870604,1748501448263,-726.22,0.0002242,2]
[362870606,1748501448272,-697.14,0.0002242,2]
[362870609,1748501448282,-1777.13,0.0002242,2]
[362870610,1748501448291,-587.14,0.0002242,2]
[362870612,1748501448300,-430.0,0.00022465,2]
[362870614,1748501448309,-430.0,0.00022465,2]
[362870616,1748501448319,-740.42,0.00022465,2]
[362870618,1748501448328,-565.68,0.00022465,2]
[362870620,1748501448338,-430.0,0.00022465,2]
[362870622,1748501448347,-430.0,0.00022465,2]
[362870624,1748501448357,-430.0,0.00022465,2]
[362870626,1748501448367,-430.0,0.00022465,2]
[362870628,1748501448376,-3475.66,0.00022465,2]
[362870630,1748501448385,-1108.14,0.00022465,2]
[362870632,1748501448395,-1422.28,0.00022465,2]
[362870634,1748501448405,-430.0,0.00022465,2]
[362870636,1748501448414,-430.0,0.00022465,2]
[362870638,1748501448423,-558.77,0.00022465,2]
[362870640,1748501448432,-430.0,0.00022465,2]
[362870642,1748501448441,-430.0,0.00022465,2]
[362870644,1748501448450,-430.0,0.00022465,2]
[362870646,1748501448459,-430.0,0.00022465,2]
[362870648,1748501448469,-222.04787578,0.00022465,2]
[362870654,1748501448517,-1019.88212422,0.00022465,2]
[362870656,1748501448527,-481.88,0.00022465,2]
[362870658,1748501448536,-430.0,0.00022465,2]
[362870660,1748501448546,-581.86,0.00022465,2]
[362870662,1748501448555,-594.74,0.00022465,2]
[362870664,1748501448564,-489.66550259,0.00022465,2]
[362870666,1748501448574,-406.2281992,0.00022465,2]
[362870668,1748501448584,-861.5,0.00022465,2]
[362870670,1748501448594,-1681.09,0.00022465,2]
[362870672,1748501448604,-839.12,0.00022465,2]
[362870674,1748501448613,-430.0,0.00022465,2]
[362870676,1748501448621,-1750.94,0.00022465,2]
[362870678,1748501448631,-420.59571215,0.00022486,7]
[362870680,1748501448640,-158.3971896,0.00022548,2]
[362870682,1748501448649,-352.6662838,0.00022548,2]
[362870684,1748501448658,-153.0,0.00022548,2]
[362870686,1748501448667,-158.3971896,0.00022548,2]
[362870687,1748501448676,-153.0,0.00022548,2]
[362870689,1748501448685,-158.3102538,0.00022548,2]
[362870691,1748501448694,-153.0,0.00022548,2]
[362870693,1748501448703,-153.0,0.00022548,2]
[362870695,1748501448712,-153.0,0.00022548,2]
[362870697,1748501448721,-153.0,0.00022548,2]
[362870699,1748501448731,-306.0,0.00022548,2]
[362870701,1748501448740,-153.0,0.00022548,2]
[362870703,1748501448749,-352.7392262,0.00022548,2]
[362870705,1748501448758,-153.0,0.00022548,2]
[362870707,1748501448767,-153.0,0.00022548,2]
[362870709,1748501448777,-653.48332529,0.00022563,2]
[362870711,1748501448786,-420.59571215,0.00022659,7]
[362870713,1748501448795,-609.59,0.00022694,2]
[362870715,1748501448804,-590.29,0.00022694,2]
[362870717,1748501448813,-726.22,0.00022694,2]
[362870719,1748501448822,-697.14,0.00022694,2]
[362870721,1748501448831,-1667.11673129,0.00022694,2]
[362870751,1748501449121,-3025.9,0.00021917,2]
[362870753,1748501449130,-3025.9,0.00022191,2]
[362870755,1748501449139,-2450.03071946,0.00022465,2]
[362871107,1748501753437,-300.0,0.00018455,2]
[362871108,1748501753460,-16276.0,0.00018456,2]
[362871109,1748501790605,-300.0,0.00018455,2]
[362871110,1748501790628,-12723.279356,0.00018456,2]
[362871111,1748501790653,-176.35868989,0.00019078,2]
[362871112,1748501790675,-300.0,0.00019177,2]
[362871113,1748501790698,-300.0,0.00019177,2]
[362871114,1748501790721,-1200.0,0.00019177,2]
[362871115,1748501790742,-430.0,0.00019178,2]
[362871116,1748501790764,-409.22163059,0.00019178,2]
[362871117,1748501790786,-275.41652247,0.00019178,2]
[362871118,1748501790809,-430.0,0.00019178,2]
[362871119,1748501790832,-415.88761476,0.00019178,2]
[362871120,1748501790859,-533.5840577,0.00019178,2]
[362871121,1748501790883,-430.0,0.00019178,2]
[362871122,1748501790909,-430.0,0.00019178,2]
[362871123,1748501790934,-430.0,0.00019178,2]
[362871124,1748501790958,-430.0,0.00019178,2]
[362871125,1748501790982,-430.0,0.00019178,2]
[362871126,1748501791005,-430.0,0.00019178,2]
[362871127,1748501791028,-166.35129202,0.00019178,2]
[362871128,1748501791054,-430.0,0.00019178,2]
[362871129,1748501791077,-430.0,0.00019178,2]
[362871130,1748501791100,-434.12480805,0.00019178,2]
[362871131,1748501791124,-430.0,0.00019178,2]
[362871132,1748501791147,-430.0,0.00019178,2]
[362871133,1748501791173,-430.0,0.00019178,2]
[362871134,1748501791197,-430.0,0.00019178,2]
[362871135,1748501791221,-430.0,0.00019178,2]
[362871136,1748501791245,-536.60502441,0.00019178,2]
[362871137,1748501791271,-430.0,0.00019178,2]
[362871138,1748501791296,-430.0,0.00019178,2]
[362871139,1748501791321,-430.0,0.00019178,2]
[362871140,1748501791344,-526.62914077,0.00019178,2]
[362871141,1748501791366,-430.0,0.00019178,2]
[362871142,1748501791390,-430.0,0.00019178,2]
[362871143,1748501791414,-430.0,0.00019178,2]
[362871144,1748501791441,-430.0,0.00019178,2]
[362871145,1748501791466,-430.0,0.00019178,2]
[362871146,1748501791490,-430.0,0.00019178,2]
[362871147,1748501791514,-430.0,0.00019178,2]
[362871148,1748501791540,-430.0,0.00019178,2]
[362871149,1748501791688,-530.42828225,0.00019178,2]
[362871150,1748501791712,-430.0,0.00019178,2]
[362871151,1748501791736,-315.82201057,0.00019178,2]
[362871152,1748501791758,-434.59658965,0.00019178,2]
[362871153,1748501791781,-430.0,0.00019178,2]
[362871154,1748501791807,-910.59,0.00019178,2]
[362871155,1748501791829,-2172.29,0.00019178,2]
[362871156,1748501791855,-507.4,0.00019178,2]
[362871157,1748501791877,-430.0,0.00019178,2]
[362871158,1748501791900,-430.0,0.00019178,2]
[362871159,1748501791922,-430.0,0.00019178,2]
[362871160,1748501791945,-430.0,0.00019178,2]
[362871161,1748501791969,-430.0,0.00019178,2]
[362871162,1748501791992,-504.51250397,0.00019178,2]
[362871163,1748501792015,-431.96881648,0.00019178,2]
[362871164,1748501792039,-999.78,0.00019178,2]
[362871165,1748501792060,-229.22231315,0.00019178,2]
[362871166,1748501792083,-430.0,0.00019178,2]
[362871167,1748501792107,-45.93134727,0.00019178,2]
[362871168,1748501841326,-8000.0,0.00018577,2]
[362871169,1748501862596,2380.45724693,0.00016,2]
[362871172,1748502003186,2186.0,0.00016,2]
[362871174,1748502092156,165.959121,0.00013699,2]
[362871177,1748502583896,2000.0,0.00022,30]
[362871200,1748502632190,-9732.9342969,0.00018049,2]
[362871201,1748502632199,-300.0,0.00018053,2]
[362871202,1748502632207,-300.0,0.00018053,2]
[362871203,1748502632216,-300.0,0.00018053,2]
[362871204,1748502632225,-300.0,0.00018054,2]
[362871205,1748502632234,-15097.8903675,0.00018055,2]
[362871206,1748502632242,-197.91325,0.00018175,2]
[362871207,1748502632252,-1075.4233488,0.00018176,2]
[362871208,1748502632262,-329.8368446,0.00018288,2]
[362871209,1748502632271,-2000.0,0.00018577,2]
[362871210,1748502632280,-161.50264046,0.000189,2]
[362871211,1748502632290,-209.93306783,0.000189,2]
[362871212,1748502632299,-400.0,0.00019,2]
[362871213,1748502632308,-1523.82900069,0.00019078,2]
[362871214,1748502632318,-352.71737978,0.00019078,2]
[362871215,1748502632327,-1832.67,0.00019168,3]
[362871216,1748502632337,-1278.37,0.00019168,3]
[362871217,1748502632346,-639.19,0.00019168,3]
[362871218,1748502632356,-319.59,0.00019168,3]
[362871219,1748502632366,-159.8,0.00019168,3]
[362871220,1748502632375,-479.42,0.00019168,3]
[362871221,1748502632384,-500.0,0.00019172,2]
[362871222,1748502632394,-417.55795353,0.00019172,2]
[362871223,1748502632403,-500.0,0.00019172,2]
[362871224,1748502632413,-500.0,0.00019172,2]
[362871225,1748502632423,-500.0,0.00019172,2]
[362871226,1748502632433,-500.0,0.00019172,2]
[362871227,1748502632443,-500.0,0.00019172,2]
[362871228,1748502632459,-500.0,0.00019172,2]
[362871229,1748502632469,-500.0,0.00019172,2]
[362871230,1748502632478,-500.89951352,0.00019173,2]
[362871231,1748502632488,-500.0,0.00019173,2]
[362871232,1748502632498,-500.0,0.00019173,2]
[362871233,1748502632508,-595.32326124,0.00019173,2]
[362871234,1748502632517,-501.31628844,0.00019173,2]
[362871235,1748502632528,-500.0,0.00019173,2]
[362871236,1748502632537,-500.0,0.00019173,2]
[362871237,1748502632546,-500.59548203,0.00019173,2]
[362871238,1748502632556,-500.0,0.00019177,2]
[362871239,1748502632565,-500.0,0.00019177,2]
[362871240,1748502632574,-500.0,0.00019177,2]
[362871241,1748502632583,-177.77147724,0.00019177,2]
[362871242,1748502632593,-369.61845481,0.00019177,2]
[362871243,1748502632602,-500.0,0.00019177,2]
[362871244,1748502632612,-500.0,0.00019177,2]
[362871245,1748502632622,-500.0,0.00019177,2]
[362871246,1748502632631,-614.30327884,0.00019177,2]
[362871247,1748502632643,-5.79439442,0.00019177,2]
[362871248,1748502632653,-430.0,0.00019178,2]
[362871249,1748502632662,-430.0,0.00019178,2]
[362871250,1748502632672,-430.0,0.00019178,2]
[362871251,1748502632682,-430.0,0.00019178,2]
[362871252,1748502632691,-430.0,0.00019178,2]
[362871253,1748502632701,-430.0,0.00019178,2]
[362871254,1748502632711,-470.43310378,0.00019178,2]
[362871255,1748502632721,-180.33106721,0.00019178,2]
[362871265,1748502638115,-249.66893279,0.00019178,2]
[362871266,1748502638124,-430.0,0.00019178,2]
[362871267,1748502638133,-357.51626057,0.00019178,2]
[362871268,1748502638141,-430.0,0.00019178,2]
[362871269,1748502638149,-277.82464378,0.00019178,2]
[362871270,1748502638158,-407.487726,0.00019178,2]
[362871271,1748502638166,-437.41962765,0.00019178,2]
[362871272,1748502638174,-430.0,0.00019178,2]
[362871273,1748502638183,-402.41386394,0.00019178,2]
[362871274,1748502638192,-435.08249657,0.00019178,2]
[362871275,1748502638201,-430.0,0.00019178,2]
[362871276,1748502638209,-434.52192689,0.00019178,2]
[362871277,1748502638218,-401.21415758,0.00019178,2]
[362871278,1748502638228,-430.0,0.00019178,2]
[362871279,1748502638237,-406.17873588,0.00019178,2]
[362871280,1748502638246,-446.28543313,0.00019178,2]
[362871281,1748502638254,-430.0,0.00019178,2]
[362871282,1748502638264,-454.78825853,0.00019178,2]
[362871283,1748502638274,-410.82305316,0.00019178,2]
[362871284,1748502638283,-430.0,0.00019178,2]
[362871285,1748502638292,-430.0,0.00019178,2]
[362871286,1748502638305,-59.42831576,0.00019178,2]
[362871287,1748502638322,-370.57168424,0.00019178,2]
[362871288,1748502638333,-158.32540694,0.00019178,2]
[362871289,1748502638348,-276.07627861,0.00019178,2]
[362871290,1748502638358,-402.49445913,0.00019178,2]
[362871291,1748502638369,-418.58263708,0.00019178,2]
[362871292,1748502638379,-408.58806194,0.00019178,2]
[362871293,1748502638389,-430.0,0.00019178,2]
[362871294,1748502638398,-500.0,0.00019178,2]
[362871295,1748502638409,-430.0,0.00019178,2]
[362871296,1748502638416,-431.97302258,0.00019178,2]
[362871297,1748502638425,-430.0,0.00019178,2]
[362871298,1748502638433,-421.82921861,0.00019178,2]
[362871299,1748502638441,-430.0,0.00019178,2]
[362871300,1748502638452,-408.38828249,0.00019178,2]
[362871301,1748502638465,-430.0,0.00019178,2]
[362871302,1748502638477,-405.13339297,0.00019178,2]
[362871303,1748502638488,-407.40789181,0.00019178,2]
[362871304,1748502638497,-400.0,0.00019178,2]
[362871305,1748502638507,-417.83794025,0.00019178,2]
[362871306,1748502638517,-433.37743186,0.00019178,2]
[362871307,1748502638529,-430.0,0.00019178,2]
[362871308,1748502638539,-418.09047416,0.00019178,2]
[362871309,1748502638551,-417.96383107,0.00019178,2]
[362871310,1748502638562,-430.0,0.00019178,2]
[362871311,1748502638571,-403.30391728,0.00019178,2]
[362871312,1748502638581,-430.0,0.00019178,2]
[362871313,1748502638592,-415.43198078,0.00019178,2]
[362871314,1748502638601,-430.23911861,0.00019178,2]
[362871315,1748502638614,-430.0,0.00019178,2]
[362871316,1748502638623,-430.0,0.00019178,2]
[362871317,1748502638632,-406.00532581,0.00019178,2]
[362871318,1748502638641,-402.69958743,0.00019178,2]
[362871319,1748502638651,-403.53598277,0.00019178,2]
[362871320,1748502638661,-500.0,0.00019178,2]
[362871321,1748502638671,-386.71301043,0.00019178,2]
[362871322,1748502638681,-430.0,0.00019178,2]
[362871323,1748502638692,-430.0,0.00019178,2]
[362871324,1748502638704,-430.0,0.00019178,2]
[362871325,1748502638713,-435.4516292,0.00019178,2]
[362871326,1748502638723,-430.0,0.00019178,2]
[362871327,1748502638733,-441.17535811,0.00019178,2]
[362871328,1748502638743,-430.0,0.00019178,2]
[362871329,1748502638754,-430.0,0.00019178,2]
[362871330,1748502638773,-430.02822067,0.00019178,2]
[362871331,1748502638787,-355.1773106,0.00019178,2]
[362871332,1748502638797,-403.1913227,0.00019178,2]
[362871333,1748502638806,-358.72994663,0.00019178,2]
[362871334,1748502638817,-430.0,0.00019178,2]
[362871335,1748502638826,-436.16812078,0.00019178,2]
[362871336,1748502638836,-367.1453051,0.00019178,2]
[362871337,1748502638847,-407.95077037,0.00019178,2]
[362871338,1748502638859,-414.84690033,0.00019178,2]
[362871339,1748502638868,-432.39411504,0.00019178,2]
[362871340,1748502638877,-430.0,0.00019178,2]
[362871341,1748502638887,-414.10560202,0.00019178,2]
[362871342,1748502638897,-461.37319427,0.00019178,2]
[362871343,1748502638906,-414.44469776,0.00019178,2]
[362871344,1748502638917,-503.42271926,0.00019178,2]
[362871345,1748502638927,-430.0,0.00019178,2]
[362871346,1748502638936,-450.0,0.00019178,2]
[362871347,1748502638946,-430.0,0.00019178,2]
[362871348,1748502638955,-402.41973853,0.00019178,2]
[362871349,1748502638964,-436.67598338,0.00019178,2]
[362871350,1748502638974,-407.9967925,0.00019178,2]
[362871351,1748502638983,-430.0,0.00019178,2]
[362871352,1748502638992,-430.0,0.00019178,2]
[362871353,1748502639002,-430.0,0.00019178,2]
[362871354,1748502639011,-456.13634286,0.00019178,2]
[362871355,1748502639021,-457.57295864,0.00019178,2]
[362871356,1748502639031,-259.62109632,0.00019178,2]
[362871357,1748502639041,-570.0,0.00019178,2]
[362871358,1748502639051,-430.0,0.00019178,2]
[362871359,1748502639061,-440.82921812,0.00019178,2]
[362871360,1748502639071,-445.92884731,0.00019178,2]
[362871361,1748502639081,-430.0,0.00019178,2]
[362871362,1748502639090,-430.0,0.00019178,2]
[362871363,1748502639100,-512.89,0.00019178,2]
[362871364,1748502639110,-430.0,0.00019178,2]
[362871365,1748502639120,-438.01759765,0.00019178,2]
[362871366,1748502639130,-835.93,0.00019178,2]
[362871367,1748502639139,-430.0,0.00019178,2]
[362871368,1748502639148,-419.06282495,0.00019178,2]
[362871369,1748502639158,-441.45363699,0.00019178,2]
[362871370,1748502639171,-430.0,0.00019178,2]
[362871371,1748502639187,-430.0,0.00019178,2]
[362871372,1748502639197,-400.49518034,0.00019178,2]
[362871373,1748502639207,-430.0,0.00019178,2]
[362871374,1748502639217,-430.0,0.00019178,2]
[362871375,1748502639227,-441.74560584,0.00019178,2]
[362871376,1748502639237,-353.81956451,0.00019178,2]
[362871377,1748502639246,-430.0,0.00019178,2]
[362871378,1748502639257,-430.0,0.00019178,2]
[362871379,1748502639266,-435.65840138,0.00019178,2]
[362871380,1748502639276,-430.0,0.00019178,2]
[362871381,1748502639286,-448.06782784,0.00019178,2]
[362871382,1748502639296,-302.85852421,0.00019178,2]
[362871383,1748502639307,-430.0,0.00019178,2]
[362871384,1748502639316,-484.72746337,0.00019178,2]
[362871385,1748502639325,-430.0,0.00019178,2]
[362871386,1748502639335,-430.0,0.00019178,2]
[362871387,1748502639345,-359.06615995,0.00019178,2]
[362871388,1748502639355,-430.0,0.00019178,2]
[362871389,1748502639365,-430.0,0.00019178,2]
[362871390,1748502639375,-430.0,0.00019178,2]
[362871391,1748502639385,-440.15407175,0.00019178,2]
[362871392,1748502639395,-442.50738797,0.00019178,2]
[362871393,1748502639405,-430.0,0.00019178,2]
[362871394,1748502639416,-430.0,0.00019178,2]
[362871395,1748502639428,-432.0471224,0.00019178,2]
[362871396,1748502639438,-430.0,0.00019178,2]
[362871397,1748502639451,-513.66073691,0.00019178,2]
[362871398,1748502639461,-430.0,0.00019178,2]
[362871399,1748502639471,-430.0,0.00019178,2]
[362871400,1748502639481,-430.0,0.00019178,2]
[362871401,1748502639491,-295.01421105,0.00019178,2]
[362871402,1748502639501,-504.81630172,0.00019178,2]
[362871403,1748502639511,-430.0,0.00019178,2]
[362871404,1748502639520,-430.0,0.00019178,2]
[362871405,1748502639533,-430.0,0.00019178,2]
[362871406,1748502639543,-430.0,0.00019178,2]
[362871407,1748502639553,-430.0,0.00019178,2]
[362871408,1748502639563,-430.0,0.00019178,2]
[362871409,1748502639574,-430.0,0.00019178,2]
[362871410,1748502639584,-221.91076367,0.00019178,2]
[362871412,1748502639594,-430.0,0.00019178,2]
[362871414,1748502639604,-430.0,0.00019178,2]
[362871416,1748502639615,-430.0,0.00019178,2]
[362871417,1748502639625,-430.0,0.00019178,2]
[362871418,1748502639635,-430.0,0.00019178,2]
[362871419,1748502639647,-430.0,0.00019178,2]
[362871420,1748502639657,-152.63117165,0.00019178,2]
[362871421,1748502639667,-430.0,0.00019178,2]
[362871422,1748502639677,-430.0,0.00019178,2]
[362871423,1748502639688,-430.0,0.00019178,2]
[362871424,1748502639706,-430.0,0.00019178,2]
[362871425,1748502639719,-430.0,0.00019178,2]
[362871426,1748502639730,-430.0,0.00019178,2]
[362871428,1748502639740,-430.0,0.00019178,2]
[362871429,1748502639750,-430.0,0.00019178,2]
[362871430,1748502639761,-248.72194273,0.00019178,2]
[362871431,1748502639771,-430.0,0.00019178,2]
[362871432,1748502639782,-430.0,0.00019178,2]
[362871434,1748502639792,-430.0,0.00019178,2]
[362871435,1748502639802,-430.0,0.00019178,2]
[362871437,1748502639812,-430.0,0.00019178,2]
[362871438,1748502639822,-430.0,0.00019178,2]
[362871439,1748502639832,-430.0,0.00019178,2]
[362871440,1748502639842,-196.29704414,0.00019178,2]
[362871441,1748502639852,-430.0,0.00019178,2]
[362871442,1748502639862,-430.0,0.00019178,2]
[362871443,1748502639872,-289.59525751,0.00019178,2]
[362871444,1748502639882,-430.0,0.00019178,2]
[362871445,1748502639892,-430.0,0.00019178,2]
[362871446,1748502639902,-430.0,0.00019178,2]
[362871447,1748502639912,-430.0,0.00019178,2]
[362871448,1748502639922,-430.0,0.00019178,2]
[362871449,1748502639933,-430.0,0.00019178,2]
[362871450,1748502639943,-430.0,0.00019178,2]
[362871451,1748502639953,-430.0,0.00019178,2]
[362871452,1748502639963,-430.0,0.00019178,2]
[362871453,1748502639973,-420.53821797,0.00019178,2]
[362871454,1748502639983,-430.0,0.00019178,2]
[362871455,1748502639993,-430.0,0.00019178,2]
[362871456,1748502640003,-430.0,0.00019178,2]
[362871457,1748502640013,-430.0,0.00019178,2]
[362871458,1748502640023,-430.0,0.00019178,2]
[362871459,1748502640033,-430.0,0.00019178,2]
[362871460,1748502640042,-430.0,0.00019178,2]
[362871461,1748502640052,-430.0,0.00019178,2]
[362871462,1748502640062,-430.0,0.00019178,2]
[362871463,1748502640071,-430.0,0.00019178,2]
[362871464,1748502640081,-430.0,0.00019178,2]
[362871465,1748502640091,-439.47986813,0.00019178,2]
[362871466,1748502640100,-430.0,0.00019178,2]
[362871467,1748502640110,-430.0,0.00019178,2]
[362871468,1748502640121,-430.0,0.00019178,2]
[362871469,1748502640131,-430.0,0.00019178,2]
[362871470,1748502640140,-430.0,0.00019178,2]
[362871471,1748502640281,-430.0,0.00019178,2]
[362871472,1748502640291,-734.54,0.00019178,2]
[362871473,1748502640301,-404.2694645,0.00019178,2]
[362871474,1748502640311,-513.22997868,0.00019178,2]
[362871475,1748502640320,-157.83810245,0.00019178,2]
[362871476,1748502640330,-430.0,0.00019178,2]
[362871477,1748502640340,-430.0,0.00019178,2]
[362871478,1748502640350,-430.0,0.00019178,2]
[362871479,1748502640361,-430.0,0.00019178,2]
[362871480,1748502640372,-430.0,0.00019178,2]
[362871481,1748502640382,-430.0,0.00019178,2]
[362871482,1748502640392,-430.0,0.00019178,2]
[362871483,1748502640402,-430.0,0.00019178,2]
[362871484,1748502640414,-430.0,0.00019178,2]
[362871485,1748502640424,-292.09813343,0.00019178,2]
[362871486,1748502640434,-430.0,0.00019178,2]
[362871487,1748502640446,-430.0,0.00019178,2]
[362871488,1748502640459,-430.0,0.00019178,2]
[362871489,1748502640469,-430.0,0.00019178,2]
[362871490,1748502640479,-430.0,0.00019178,2]
[362871491,1748502640490,-430.0,0.00019178,2]
[362871492,1748502640499,-430.0,0.00019178,2]
[362871493,1748502640508,-408.67619025,0.00019178,2]
[362871494,1748502640518,-430.0,0.00019178,2]
[362871495,1748502640530,-430.0,0.00019178,2]
[362871496,1748502640539,-430.0,0.00019178,2]
[362871497,1748502640549,-445.67964488,0.00019178,2]
[362871498,1748502640558,-445.32150362,0.00019178,2]
[362871499,1748502640567,-430.0,0.00019178,2]
[362871500,1748502640580,-430.0,0.00019178,2]
[362871501,1748502640589,-430.0,0.00019178,2]
[362871502,1748502640599,-510.51537484,0.00019178,2]
[362871503,1748502640608,-400.0,0.00019178,2]
[362871504,1748502640618,-454.51495923,0.00019178,2]
[362871505,1748502640627,-501.90852557,0.00019178,2]
[362871506,1748502640637,-430.00000001,0.00019178,2]
[362871507,1748502640646,-430.0,0.00019178,2]
[362871508,1748502640655,-430.0,0.00019178,2]
[362871509,1748502640664,-430.0,0.00019178,2]
[362871510,1748502640674,-430.0,0.00019178,2]
[362871511,1748502640684,-430.0,0.00019178,2]
[362871512,1748502640694,-430.0,0.00019178,2]
[362871513,1748502640704,-430.0,0.00019178,2]
[362871514,1748502640713,-230.98783582,0.00019178,2]
[362871515,1748502640723,-350.0,0.00019178,2]
[362871516,1748502640732,-212.18738199,0.00019178,2]
[362871517,1748502640741,-430.0,0.00019178,2]
[362871518,1748502640751,-430.0,0.00019178,2]
[362871519,1748502640760,-430.0,0.00019178,2]
[362871520,1748502640769,-430.0,0.00019178,2]
[362871521,1748502640778,-430.0,0.00019178,2]
[362871522,1748502640788,-430.0,0.00019178,2]
[362871523,1748502640797,-430.0,0.00019178,2]
[362871524,1748502640807,-409.19657773,0.00019178,2]
[362871525,1748502640817,-430.0,0.00019178,2]
[362871526,1748502640828,-430.0,0.00019178,2]
[362871527,1748502640838,-1868.89,0.00019178,2]
[362871528,1748502640847,-430.0,0.00019178,2]
[362871529,1748502640857,-430.0,0.00019178,2]
[362871530,1748502640867,-240.0,0.00019178,2]
[362871531,1748502640876,-430.0,0.00019178,2]
[362871532,1748502640886,-430.0,0.00019178,2]
[362871533,1748502640895,-430.0,0.00019178,2]
[362871534,1748502640904,-430.0,0.00019178,2]
[362871535,1748502640913,-430.0,0.00019178,2]
[362871536,1748502640923,-430.0,0.00019178,2]
[362871537,1748502640933,-500.0,0.00019178,2]
[362871538,1748502640943,-430.0,0.00019178,2]
[362871539,1748502640953,-430.0,0.00019178,2]
[362871540,1748502640963,-213.28876023,0.00019178,2]
[362871541,1748502640974,-430.0,0.00019178,2]
[362871542,1748502640983,-430.0,0.00019178,2]
[362871543,1748502640992,-430.0,0.00019178,2]
[362871544,1748502641002,-430.0,0.00019178,2]
[362871545,1748502641012,-430.0,0.00019178,2]
[362871546,1748502641021,-430.0,0.00019178,2]
[362871547,1748502641030,-430.0,0.00019178,2]
[362871548,1748502641039,-430.0,0.00019178,2]
[362871549,1748502641050,-430.0,0.00019178,2]
[362871550,1748502641059,-430.0,0.00019178,2]
[362871551,1748502641069,-151.0,0.00019178,2]
[362871552,1748502641078,-430.0,0.00019178,2]
[362871553,1748502641090,-430.0,0.00019178,2]
[362871554,1748502641099,-430.0,0.00019178,2]
[362871555,1748502641110,-430.0,0.00019178,2]
[362871556,1748502641120,-430.0,0.00019178,2]
[362871557,1748502641129,-430.0,0.00019178,2]
[362871558,1748502641139,-430.0,0.00019178,2]
[362871559,1748502641148,-250.0,0.00019178,2]
[362871560,1748502641157,-430.0,0.00019178,2]
[362871561,1748502641167,-1175.42,0.00019178,2]
[362871562,1748502641176,-430.0,0.00019178,2]
[362871563,1748502641187,-285.70721057,0.00019178,2]
[362871564,1748502641196,-430.0,0.00019178,2]
[362871565,1748502641206,-430.0,0.00019178,2]
[362871566,1748502641217,-430.0,0.00019178,2]
[362871567,1748502641227,-430.0,0.00019178,2]
[362871568,1748502641237,-1527.84,0.00019178,2]
[362871569,1748502641249,-430.0,0.00019178,2]
[362871570,1748502641260,-430.0,0.00019178,2]